Cogmind - Beta 15 @@@ ROGUE MODE // 2025.07.21 @ 17:31:07 Player: chebyrekser Result: Destroyed by G-73 Enforcer with Heavy Laser Performance ------------- Evolutions (8) 4000 Regions Visited (16) 3200 Robots Destroyed (321) 1605 Value Destroyed (13862) 13862 Prototype IDs (9) 180 Alien Tech Used (0) 0 Bonus (6463) 6463 TOTAL SCORE: 29310 Bonus ------- High Alert Combat Kills 2142 Follower Combat Kills 321 Entered Garrisons 1000 Used RIF Installer 3000 Cogmind --------- Core Integrity 0/1450 Matter 7/300 Energy 100/100 System Corruption 0% Temperature Cool (9) Movement Core (50) Location -2/Research Parts ------- > --- POWER (2) -------- (None) > --- PROPULSION (5) --- (None) > --- UTILITY (12) ----- (None) > --- WEAPON (4) ------- (None) > --- INVENTORY (5) ---- Relay Coupler [Grunt] (29) Relay Coupler [Grunt] (30) Relay Coupler [Grunt] (23) Remote Datajack Peak State ------------ > --- POWER ------------ Angular Momentum Engine Light Angular Momentum Engine > --- PROPULSION ------- Armored Treads Medium Treads Advanced Medium Treads Advanced Medium Treads > --- UTILITY ---------- Advanced Heat Sink Advanced Heat Sink Huge Storage Unit Advanced Signal Interpreter Advanced Targeting Computer Advanced Targeting Computer Advanced Phase Shifter Insulated Plating Insulated Plating > --- WEAPON ----------- Cooled Pulse Rifle Phase Gun Neutron Cannon Linear Accelerator > --- INVENTORY -------- Micro Fission Core Myomer Leg Improved Cooling System Huge Storage Unit Advanced Transmission Jammer Authchip [R/Combat] Relay Coupler [NC] Relay Coupler [Grunt] Relay Coupler [Grunt] Relay Coupler [Grunt] Relay Coupler [Grunt] Relay Coupler [Sentry] Missile Launcher Mini Smartbomb Launcher Remote Datajack Advanced Remote Datajack Great Maul [Rating: 102] Favorites ----------- Power Heavy Ion Engine Engine Heavy Ion Engine Power Core Micro Nuclear Core Reactor Light Particle Reactor Propulsion Light Treads Treads Light Treads Leg Carbon-fiber Leg Wheel Wheel Flight Unit Impulse Thruster Utility Improved Light Armor Plating Device Advanced Heat Sink Storage Huge Storage Unit Processor Advanced Targeting Computer Hackware Relay Coupler [Grunt] Protection Improved Light Armor Plating Weapon Cooled Pulse Rifle Energy Gun Cooled Pulse Rifle Energy Cannon Neutron Cannon Ballistic Gun Heavy Assault Rifle Ballistic Cannon Mass Driver Launcher Missile Launcher Special Weapon Mining Laser Impact Weapon Great Maul Build | -11 -10 -9 -8 -8 -8 -8 -7 -7 -7 -7 -6 -6 -5 -4 -3 -2 ------- Run | Yrd Mat Mat Mat Gar Mat Gar Fac Gar Fac Gar Fac Gar Fac Fac Res Res Slots Evolved 16 | . . 2 2 . . . 2 . . . 2 . 2 2 2 2 Power 1 | . . . . . . . . . . . 1 . . . . . Propulsion 3 | . . 1 1 . . . . . . . . . . 1 . . Utility 10 | . . 1 1 . . . 2 . . . 1 . 1 1 1 2 Weapon 2 | . . . . . . . . . . . . . 1 . 1 . Parts Attached 178 | 7 3 27 . 11 37 6 18 11 1 7 2 8 19 2 19 . Power 19 | 1 . 3 . 1 1 1 2 1 . . 1 3 1 . 4 . Engine 12 | 1 . 3 . 1 1 1 1 . . . 1 1 . . 2 . Core 6 | . . . . . . . 1 1 . . . 2 1 . 1 . Reactor 1 | . . . . . . . . . . . . . . . 1 . Propulsion 57 | 2 . 9 . 6 13 3 6 5 . 2 1 1 3 . 6 . Treads 40 | 2 . 4 . 5 10 3 3 4 . 1 1 1 3 . 3 . Leg 11 | . . 4 . 1 3 . . 1 . 1 . . . . 1 . Wheel 5 | . . 1 . . . . 3 . . . . . . . 1 . Hover . | . . . . . . . . . . . . . . . . . Flight 1 | . . . . . . . . . . . . . . . 1 . Utility 57 | 2 2 8 . 3 7 2 8 2 . 5 . 3 10 2 3 . Device 20 | 1 1 2 . 2 3 . 3 . . 1 . 2 3 1 1 . Storage 3 | 1 1 . . . . . 1 . . . . . . . . . Processor 4 | . . . . . . . . 2 . 1 . . . 1 . . Hackware 5 | . . . . 1 1 . . . . . . . 2 . 1 . Protection 25 | . . 6 . . 3 2 4 . . 3 . 1 5 . 1 . Artifact . | . . . . . . . . . . . . . . . . . Weapon 45 | 2 1 7 . 1 16 . 2 3 1 . . 1 5 . 6 . Energy Gun 14 | 1 . 1 . . 5 . 1 2 . . . 1 1 . 2 . Energy Cannon 6 | . . 2 . . 1 . . . . . . . 1 . 2 . Ballistic Gun 10 | 1 . 2 . 1 5 . . . 1 . . . . . . . Ballistic Cannon 3 | . . 1 . . . . . . . . . . 1 . 1 . Launcher 5 | . . 1 . . 2 . . 1 . . . . 1 . . . Special Weapon 5 | . 1 . . . 1 . 1 . . . . . 1 . 1 . Impact Weapon 2 | . . . . . 2 . . . . . . . . . . . Slashing Weapon . | . . . . . . . . . . . . . . . . . Piercing Weapon . | . . . . . . . . . . . . . . . . . Special Melee Weapon . | . . . . . . . . . . . . . . . . . Unidentified Prototypes 9 | . . 1 . . 5 . 1 . . . . . 2 . . . Parts Lost 110 | . . 13 . 11 12 4 10 7 1 4 1 6 8 . 32 1 Power 16 | . . 2 . 1 1 . 2 1 . . . 3 1 . 5 . Propulsion 38 | . . 3 . 5 6 1 6 3 . 2 . . 2 . 9 1 Utility 34 | . . 5 . 4 2 2 1 3 1 2 . 2 4 . 8 . Weapon 22 | . . 3 . 1 3 1 1 . . . 1 1 1 . 10 . Highest Loss Streak 10 | . . 5 . 7 3 2 3 4 1 2 1 4 3 . 10 1 To Critical Strikes 3 | . . . . . 1 . . . . . . . . . 2 . Average Backups 19 | 2 9 17 18 19 18 17 20 22 24 22 23 24 23 23 17 4 Power 1 | . 2 2 2 1 1 . 1 1 2 2 2 2 2 3 1 . Propulsion . | . . 1 3 1 . . . 1 1 . . 2 . 1 . . Utility 10 | . 4 8 7 8 9 10 11 10 12 12 12 13 14 11 10 3 Weapon 5 | 1 3 5 6 6 6 5 5 8 8 7 7 5 5 5 3 . Tool/Special . | . . . . . . . . . . . . . . . . . Unused Backups 31 | . . 4 . 9 5 . . . 1 . . 1 3 . 5 3 Power 3 | . . 3 . . . . . . . . . . . . . . Propulsion 5 | . . . . 2 1 . . . 1 . . . 1 . . . Utility 20 | . . . . 7 3 . . . . . . 1 1 . 5 3 Weapon 3 | . . 1 . . 1 . . . . . . . 1 . . . Tool/Special . | . . . . . . . . . . . . . . . . . Average Slot Usage (%) 90 | . 100 85 90 88 90 88 91 97 86 89 88 84 97 94 76 2 Engine 5 | . 14 7 9 9 8 9 5 . . . 3 6 5 5 5 . Core 2 | . . . . . . . 1 6 7 7 6 3 4 5 1 . Treads 23 | . 28 19 27 31 22 34 23 26 23 18 18 20 22 21 16 . Leg 3 | . . 5 . . 10 . . 2 . 3 1 . . . 1 . Device 8 | . 14 6 9 8 11 . 6 6 15 7 11 12 11 15 10 . Storage 7 | . 14 11 9 9 9 9 7 7 7 7 6 6 5 5 3 . Processor 4 | . . . . . . . . 10 15 15 13 13 11 10 13 . Hackware 1 | . . . . . 4 . . . . . . . 3 . . . Protection 12 | . . 13 18 10 4 17 25 18 6 12 13 8 11 15 4 . Energy Gun 6 | . 14 5 . . 3 1 4 11 8 10 12 12 8 5 4 . Energy Cannon 1 | . . 4 . . . . . . . . . . 3 5 3 . Ballistic Gun 6 | . 12 7 9 16 11 12 9 . . . . . . . . . Peak Build Rating 102 | 7 9 18 16 25 37 35 45 59 59 59 69 72 79 82 102 11 Average Rating 41 | 4 7 12 16 19 29 32 41 48 55 55 66 65 73 79 85 4 On Entrance 38 | . 7 9 15 16 22 35 34 45 59 54 59 66 66 75 82 8 Naked Turns 83 | . . . . . . . . . . . . . . . 21 62 Heaviest Build 145 | 14 49 59 59 61 80 82 124 107 101 107 114 115 145 137 144 4 Greatest Support 131 | 40 40 60 60 80 80 80 92 123 123 123 125 125 125 96 131 7 Greatest Overweight (x) 40 | . 1 18 . 1 2 1 40 1 . 1 1 . 2 1 4 1 Average Overweight (x) . | . . 2 . . . . 2 . . . . . . 1 . . Largest Inventory Capacity 25 | 8 20 20 20 20 20 20 25 25 25 25 25 25 25 25 25 5 Average Capacity 22 | 7 15 20 20 20 20 20 23 25 25 25 25 25 25 25 24 5 Most Carried 25 | 5 20 20 18 20 20 20 24 25 25 24 25 25 25 25 25 5 Average Carried 19 | 2 9 17 18 19 18 18 20 22 24 22 23 24 23 23 17 4 Final Capacity 25 | 8 20 20 20 20 20 20 25 25 25 25 25 25 25 25 5 5 Final Carried 25 | 2 20 19 18 19 20 20 21 25 24 23 25 25 22 25 5 4 Class Distribution -------------------- 44% | Bothacker-Mutant 19% | Mutant 19% | Scavenger-Mutant 8% | Botlord-Tank 5% | Botlord-Gunner 3% | Botlord-Mutant Dominant Class ---------------- Mutant | -10/Materials Mutant | -9/Materials Scavenger-Mutant | -8/Materials Scavenger-Mutant | -8/Garrison Scavenger-Mutant | -8/Materials Bothacker-Mutant | -8/Garrison Bothacker-Mutant | -7/Factory Bothacker-Mutant | -7/Garrison Bothacker-Mutant | -7/Factory Bothacker-Mutant | -7/Garrison Bothacker-Mutant | -6/Factory Botlord-Mutant | -6/Garrison Botlord-Tank | -5/Factory Botlord-Tank | -4/Factory Botlord-Gunner | -3/Research Mutant | -2/Research Resources | -11 -10 -9 -8 -8 -8 -8 -7 -7 -7 -7 -6 -6 -5 -4 -3 -2 ----------- Run | Yrd Mat Mat Mat Gar Mat Gar Fac Gar Fac Gar Fac Gar Fac Fac Res Res Matter Collected 7293 | 275 45 791 . 855 1658 657 917 519 38 385 . 269 429 . 455 . Remotely . | . . . . . . . . . . . . . . . . . Salvage Created 12492 | 116 311 1015 . 854 2030 813 1382 1577 172 1163 . 480 1741 . 838 . Parts 620 | 12 21 70 . 39 119 44 65 65 7 40 . 34 64 . 40 . Haulers Intercepted 8 | . . 3 . . 4 . 1 . . . . . . . . . Recyclers Shooed 8 | . . 1 . . . . 2 . 1 . . . 4 . . . Parts Field Recycled . | . . . . . . . . . . . . . . . . . Retrieved Matter . | . . . . . . . . . . . . . . . . . Parts Self-Destructed . | . . . . . . . . . . . . . . . . . Prevented . | . . . . . . . . . . . . . . . . . Kills | -11 -10 -9 -8 -8 -8 -8 -7 -7 -7 -7 -6 -6 -5 -4 -3 -2 ------- Run | Yrd Mat Mat Mat Gar Mat Gar Fac Gar Fac Gar Fac Gar Fac Fac Res Res Combat Hostiles Destroyed 249 | . 9 22 . 17 33 25 15 26 3 31 . 23 26 . 19 . Melee 1 | . . . . . . . . . 1 . . . . . . . Guns 132 | . 9 12 . 17 26 9 15 10 . 15 . 13 4 . 2 . Cannons 32 | . . 8 . . 3 . . . . . . . 13 . 8 . AOE 81 | . . 1 . . 4 16 . 16 2 15 . 9 9 . 9 . Classes Destroyed 19 | 2 3 6 . 1 1 2 1 . . . . . 3 . . . Worker 13 | . . 1 . . 9 . 2 . . . . . . . 1 . Builder 8 | . . 1 . . 4 . . . 2 . . . . . 1 . Tunneler 7 | 3 . 2 . . 2 . . . . . . . . . . . Hauler 8 | . . 3 . . 4 . 1 . . . . . . . . . Recycler 18 | 1 . 1 . . 2 . 6 . 1 . . . 5 . 2 . Mechanic 2 | . . 1 . . 1 . . . . . . . . . . . Operator 4 | . . 2 . . 2 . . . . . . . . . . . Watcher 11 | . 1 1 . . 3 . 4 . . . . . 1 . 1 . Swarmer 78 | . 3 7 . . 7 8 . 17 2 6 . 19 5 . 4 . Cutter 3 | . . . . . . 3 . . . . . . . . . . Saboteur 1 | . . . . . . . . . . . . . 1 . . . Grunt 98 | . 6 9 . 12 19 7 4 3 1 21 . 3 8 . 5 . Brawler 3 | . . . . . . 2 . . . 1 . . . . . . Duelist 4 | . . . . . 1 1 . 1 . . . . . . 1 . Sentry 24 | . . 6 . 2 7 2 2 3 . 1 . 1 . . . . Specialist 2 | . . . . . . . . . . . . . 2 . . . Hunter 10 | . . . . . . . 2 2 . . . . 4 . 2 . Programmer 25 | . . . . 3 . 2 7 . . 2 . . 4 . 7 . Heavy 2 | . . . . . . . . . . . . . 2 . . . Best Kill Streak 11 | 4 3 8 . 3 9 10 3 6 4 9 . 11 7 . 5 . Combat Bots Only 11 | . 2 5 . 3 4 10 2 6 2 9 . 11 5 . 5 . Max Kills in Single Turn 5 | 1 1 2 . 1 4 5 1 4 3 5 . 3 5 . 2 . Gunslinging . | . . . . . . . . . . . . . . . . . Exploded 5 | . . 1 . . 2 5 . 4 1 5 . 3 5 . 2 . Melee 1 | . . . . . . . . . 1 . . . . . . . Uniques/NPCs Destroyed . | . . . . . . . . . . . . . . . . . Combat | -11 -10 -9 -8 -8 -8 -8 -7 -7 -7 -7 -6 -6 -5 -4 -3 -2 -------- Run | Yrd Mat Mat Mat Gar Mat Gar Fac Gar Fac Gar Fac Gar Fac Fac Res Res Hostile Shots Fired 1971 | . 38 166 . 140 219 117 219 198 11 131 15 107 173 . 301 136 Missed 619 | . 8 44 . 32 54 26 79 67 2 32 5 26 64 . 116 64 Hits 1352 | . 30 122 . 108 165 91 140 131 9 99 10 81 109 . 185 72 Melee 9 | . . . . . . 8 . . . . . . . . 1 . Projectile 1343 | . 30 122 . 108 165 83 140 131 9 99 10 81 109 . 184 72 AOE 6 | . . 1 . . . 2 2 . . . . . 1 . . . Critical Strikes 70 | . . 2 . 15 8 10 7 1 . 9 . . 3 . 12 3 Part Disruptions 3 | . . . . . . . . . . . . . 3 . . . Damage Taken 20482 | . 312 1903 . 1639 2258 1264 1829 1240 190 1225 160 755 2237 . 3945 1525 Core 3965 | . 86 293 . 166 228 81 89 111 50 168 . 88 158 . 993 1454 Absorbed by Shields 847 | . . . . 39 56 162 . 165 . 191 . 168 . . . 66 Ignored by Resistances 277 | . . . . . . . 18 . . . . 216 31 . 12 . Regen/Repaired (Parts) 116 | . . . . . . . 116 . . . . . . . . . Core Remaining (%) 60 | 100 65 26 . . . 13 . . . 40 . 89 84 100 23 . Volleys Fired 861 | 11 37 108 . 95 142 42 113 84 4 63 3 36 68 1 54 . Largest 4 | 2 2 2 . 2 2 2 2 2 2 2 1 2 3 1 4 . Hottest 252 | 70 100 136 . 100 100 78 78 120 96 75 60 100 157 47 252 . Shots Fired 1657 | 22 71 188 . 180 270 80 224 154 5 125 3 64 156 1 114 . Gun 1342 | 22 68 108 . 173 241 71 220 148 4 108 3 56 85 . 35 . Cannon 203 | . . 73 . . 10 . . . . . . . 59 1 60 . Launcher 78 | . . 1 . . 10 9 . 6 1 17 . 8 9 . 17 . Special 34 | . 3 6 . 7 9 . 4 . . . . . 3 . 2 . Kinetic 800 | 11 34 103 . 173 208 58 176 4 . . . . 8 1 24 . Thermal 753 | 11 37 84 . 7 36 13 44 144 4 108 3 56 136 . 70 . Explosive 78 | . . 1 . . 10 9 . 6 1 17 . 8 9 . 17 . Electromagnetic 11 | . . . . . 10 . . . . . . . . . 1 . Robot Hit Streak 59 | 7 11 14 . 15 15 7 14 59 5 15 . 19 27 . 18 . Robot Miss Streak 10 | 1 3 10 . 3 3 2 5 2 . 2 . 2 3 . 2 . Penetration Max . | . . . . . . . . . . . . . . . . . Secondary Targets 12 | . . 1 . . 2 2 1 2 . 1 . 3 . . . . Max Gunslinging Chain 1 | . . 1 . . 1 1 1 1 . 1 . 1 . . . . Shots Hit Robots 1166 | 16 41 104 . 121 199 53 152 126 5 93 . 42 127 . 87 . Core Hits 614 | 6 20 42 . 47 90 46 51 79 4 66 . 38 66 . 59 . Critical Kills 2 | . . . . . 1 . 1 . . . . . . . . . Critical Parts Destroyed 10 | . . 1 . . 6 1 2 . . . . . . . . . Critical Strikes 34 | 1 2 2 . . 9 1 4 3 . 4 . 4 4 . . . Burn 20 | 1 2 . . . 2 . 1 3 . 4 . 4 3 . . . Destroy 6 | . . 1 . . 2 . 3 . . . . . . . . . Blast 2 | . . 1 . . . . . . . . . . 1 . . . Smash 6 | . . . . . 5 1 . . . . . . . . . . Melee Attacks 36 | . . . . . 19 10 3 4 . . . . . . . . Impact 36 | . . . . . 19 10 3 4 . . . . . . . . Slashing . | . . . . . . . . . . . . . . . . . Piercing . | . . . . . . . . . . . . . . . . . Sneak Attacks 12 | . . . . . 12 . . . . . . . . . . . Combat Hostiles . | . . . . . . . . . . . . . . . . . Follow-up Attacks . | . . . . . . . . . . . . . . . . . Damage Inflicted 33630 | 174 463 1920 . 1923 5407 2432 2493 3698 634 3506 . 1895 4594 . 4486 5 Guns 16771 | 172 463 867 . 1923 2668 731 2493 2510 94 1819 . 818 1501 . 712 . Cannons 4854 | . . 905 . . 245 . . . . . . . 1815 . 1889 . Explosions 10272 | . . 148 . . 1335 1199 . 1128 535 1687 . 1077 1278 . 1885 . Melee 1704 | . . . . . 1142 502 . 60 . . . . . . . . Ramming 29 | 2 . . . . 17 . . . 5 . . . . . . 5 Kinetic 8704 | 59 121 908 . 1923 2200 624 1932 26 . . . . 178 . 733 . Thermal 13260 | 113 342 864 . . 515 107 561 2484 511 1819 . 818 3235 . 1891 . Explosive 9643 | . . 148 . . 1288 1199 . 1128 118 1687 . 1077 1181 . 1817 . Electromagnetic 290 | . . . . . 245 . . . . . . . . . 45 . Impact 1704 | . . . . . 1142 502 . 60 . . . . . . . . Slashing . | . . . . . . . . . . . . . . . . . Piercing . | . . . . . . . . . . . . . . . . . Highest Corruption 9 | . . 1 . 4 4 5 4 4 4 4 . . 8 . 9 . Average Corruption 3 | . . 1 . 3 4 4 2 4 4 4 . . 4 . 7 . Corruption Purged 1 | . . . . . . . 1 . . . . . . . . . Corruption Blocked . | . . . . . . . . . . . . . . . . . Effects 283 | . . 10 . 6 89 23 45 51 5 26 . . 16 . 12 . Message Errors 62 | . . 2 . 3 22 2 8 8 1 9 . . 3 . 4 . Matter Fused 70 | . . 3 . 1 26 4 12 12 . 4 . . 4 . 4 . Heat Flow Errors 37 | . . 2 . . 10 5 6 6 2 3 . . 3 . . . Energy Discharges 30 | . . 1 . . 7 3 5 8 . 4 . . 2 . . . Parts Rejected 3 | . . . . . 1 2 . . . . . . . . . . Parts Fused 4 | . . . . . . . . 3 . 1 . . . . . . Data Loss (minor) 40 | . . . . 1 15 2 6 6 2 3 . . 2 . 3 . Data Loss (major) 11 | . . 1 . . 3 2 1 2 . 1 . . 1 . . . Misfires 10 | . . . . . 3 2 3 1 . 1 . . . . . . Alerts 7 | . . . . . . 1 3 2 . . . . . . 1 . Weapon Failures 9 | . . 1 . 1 2 . 1 3 . . . . 1 . . . Overload Shots 19 | . . . . . . . . 11 1 . 1 3 3 . . . Overflow Damage 1491 | . . 9 . . 754 181 57 16 221 1 . 32 130 . 90 . Projectiles 119 | . . 8 . . . . . . . . . . 57 . 54 . Explosions 533 | . . 1 . . 35 61 57 16 221 1 . 32 73 . 36 . Melee 839 | . . . . . 719 120 . . . . . . . . . . Knockbacks 17 | . . 5 . . 2 2 . . . . . . . . 8 . Impact 4 | . . . . . 2 2 . . . . . . . . . . Kinetic 13 | . . 5 . . . . . . . . . . . . 8 . Secondary . | . . . . . . . . . . . . . . . . . Self-Inflicted Damage 618 | . . 42 . . 45 66 162 26 50 21 . . 15 . 189 2 Shots 19 | . . 1 . . 2 3 2 2 1 3 . . 1 . 4 . Rammed 5 | 1 . 1 . . 2 . . . . . . . . . . 1 Targets Rammed 6 | 1 . 1 . . 2 . . . 1 . . . . . . 1 Kicked . | . . . . . . . . . . . . . . . . . Crushed 1 | . . . . . . . . . 1 . . . . . . . Highest Temperature 384 | 62 166 384 . 64 282 291 274 278 160 149 . . 329 . 301 . Average Temperature 73 | 29 48 117 . 20 71 95 56 83 84 28 . . 63 . 71 . Received Heat Transfer 4550 | . 105 615 . 688 1018 194 255 166 54 691 36 91 162 . 349 126 Effects 14 | . . 9 . . 1 1 3 . . . . . . . . . Shutdowns 1 | . . 1 . . . . . . . . . . . . . . Energy Bleed 6 | . . 2 . . 1 1 2 . . . . . . . . . Interference 7 | . . 6 . . . . 1 . . . . . . . . . Siege Activations . | . . . . . . . . . . . . . . . . . Martial Activations . | . . . . . . . . . . . . . . . . . Shielding Activations . | . . . . . . . . . . . . . . . . . Robots Disrupted . | . . . . . . . . . . . . . . . . . Combat Hostiles . | . . . . . . . . . . . . . . . . . Robots Corrupted 7 | . . . . . 5 2 . . . . . . . . . . Combat Hostiles . | . . . . . . . . . . . . . . . . . Parts Fried 6 | . . . . . 6 . . . . . . . . . . . Impact Corruptions 29 | . . . . . 24 5 . . . . . . . . . . Robots Melted 3 | . . 1 . . . . . . . 1 . 1 . . . . Combat Hostiles 3 | . . 1 . . . . . . . 1 . 1 . . . . Parts Melted 45 | 1 1 3 . . . . 2 18 . 6 . 4 8 . 2 . Heat Transferred 19422 | 407 1147 1702 . . 1099 164 1110 4819 411 3045 . 1283 3075 . 1160 . Parts Sabotaged . | . . . . . . . . . . . . . . . . . Parts Stolen . | . . . . . . . . . . . . . . . . . Parts Stripped . | . . . . . . . . . . . . . . . . . Power Chain Reactions 3 | . . . . . 1 . . . . . . . 1 . 1 . Alert | -11 -10 -9 -8 -8 -8 -8 -7 -7 -7 -7 -6 -6 -5 -4 -3 -2 ------- Run | Yrd Mat Mat Mat Gar Mat Gar Fac Gar Fac Gar Fac Gar Fac Fac Res Res Maximum Alert Level 4 | . . . . 2 2 3 2 4 3 4 3 4 3 2 1 1 Low Security (%) 32 | 100 100 100 100 43 56 . 4 . . . . . . . 75 68 Level 1 25 | . . . . 35 34 6 81 7 . . . . . 89 24 31 Level 2 20 | . . . . 21 8 36 14 35 43 6 26 26 79 10 . . Level 3 15 | . . . . . . 57 . 31 56 42 73 70 20 . . . Level 4 6 | . . . . . . . . 26 . 50 . 2 . . . . Level 5 . | . . . . . . . . . . . . . . . . . High Security . | . . . . . . . . . . . . . . . . . Max Security . | . . . . . . . . . . . . . . . . . Peak Influence 1477 | 10 100 191 78 424 611 1030 560 1419 748 1477 774 1104 898 410 303 254 Initial 774 | . . . 78 37 206 394 540 226 744 509 774 465 579 410 123 149 Average 425 | 2 34 55 69 248 180 752 298 839 705 1044 724 862 654 327 173 171 Influence Increases 9369 | 20 294 770 . 517 1323 676 592 1343 124 1008 1 699 935 15 887 165 Destroy 0b10 Robot/C 5160 | . 180 440 . 360 680 500 300 660 60 620 . 460 520 . 380 . Destroy 0b10 Robot/NC 405 | 20 5 60 . . 135 10 65 35 15 5 . . 30 . 25 . Destroy Leader 828 | . 32 118 . 10 184 40 130 50 10 40 . 30 112 . 72 . Allied During Kill 91 | . . . . 2 2 . . 87 . . . . . . . . Successful Hack 93 | . 14 24 . . 11 . 4 . . 28 . . 12 . . . Disable Machine 375 | . . 45 . . 60 . 60 . 30 30 . . 105 15 30 . Anti-Garrison Action 1150 | . . . . 100 . 100 . 450 . 200 . 150 . . 150 . Destroy Structure 682 | . 3 23 . 15 86 26 33 46 9 70 1 44 126 . 200 . Lose Combat Pursuer 585 | . 60 60 . 30 165 . . 15 . 15 . 15 30 . 30 165 Influence Decreases 9115 | 20 294 584 128 151 1140 253 1299 247 815 259 813 260 1201 618 856 177 Entered New Map 4126 | . . . 108 21 218 213 490 97 675 219 703 200 525 428 112 117 Time Decay 3573 | 20 294 462 20 . 638 . 709 . 130 . 100 . 556 190 404 50 Lost Part 1084 | . . 120 . 110 114 40 100 70 10 40 10 60 80 . 320 10 Lost Ally 182 | . . 2 . 20 20 . . 80 . . . . 40 . 20 . Purge Threat 150 | . . . . . 150 . . . . . . . . . . . Squads Dispatched 37 | . 4 1 . . 4 . 8 . 2 . . . 8 1 8 1 Investigation 4 | . 2 1 . . 1 . . . . . . . . . . . Extermination 13 | . . . . . . . 6 . 1 . . . 3 1 1 1 Reinforcement 12 | . 2 . . . 2 . 1 . 1 . . . 4 . 2 . Assault 4 | . . . . . 1 . . . . . . . 1 . 2 . Garrison 4 | . . . . . . . 1 . . . . . . . 3 . Intercept . | . . . . . . . . . . . . . . . . . Searches Triggered . | . . . . . . . . . . . . . . . . . Construction Impeded 4 | . . . . . 1 . . . 1 . . . 1 . 1 . Haulers Reinforced 1 | . . . . . . . 1 . . . . . . . . . Active Scanning Responses . | . . . . . . . . . . . . . . . . . Cargo Convoy Interrupts 1 | . . . . . . . . . . . . . 1 . . . Stealth | -11 -10 -9 -8 -8 -8 -8 -7 -7 -7 -7 -6 -6 -5 -4 -3 -2 --------- Run | Yrd Mat Mat Mat Gar Mat Gar Fac Gar Fac Gar Fac Gar Fac Fac Res Res Distress Signals 18 | . 2 3 . . 4 . 1 . . . . . 3 . 3 2 Communications Jammed 24 | . . . . . . . . . . . . . . . 24 . Distress Signals 24 | . . . . . . . . . . . . . . . 24 . Times Spotted 378 | . 17 37 1 20 59 27 31 33 7 26 3 23 35 . 39 20 Peak Tracking Total 15 | . 4 5 1 4 5 10 2 6 5 8 3 7 6 . 10 15 Tactical Retreats 27 | . 3 3 . 2 10 . . 1 . 1 . 1 1 . 2 3 Traps | -11 -10 -9 -8 -8 -8 -8 -7 -7 -7 -7 -6 -6 -5 -4 -3 -2 ------- Run | Yrd Mat Mat Mat Gar Mat Gar Fac Gar Fac Gar Fac Gar Fac Fac Res Res Traps Triggered 29 | . 2 2 . 1 1 1 5 10 . 4 1 1 . . . 1 Indirectly . | . . . . . . . . . . . . . . . . . Trap Hack Attempts . | . . . . . . . . . . . . . . . . . Triggered . | . . . . . . . . . . . . . . . . . Disarmed . | . . . . . . . . . . . . . . . . . Reprogrammed . | . . . . . . . . . . . . . . . . . Reused . | . . . . . . . . . . . . . . . . . Traps Extracted . | . . . . . . . . . . . . . . . . . Installed . | . . . . . . . . . . . . . . . . . Triggered . | . . . . . . . . . . . . . . . . . Machines | -11 -10 -9 -8 -8 -8 -8 -7 -7 -7 -7 -6 -6 -5 -4 -3 -2 ---------- Run | Yrd Mat Mat Mat Gar Mat Gar Fac Gar Fac Gar Fac Gar Fac Fac Res Res Machines Disabled 39 | . . 3 . 2 4 2 4 3 2 5 . 3 7 1 3 . Max in Single Turn 6 | . . 1 . 1 1 1 4 1 2 1 . 1 6 1 1 . Garrison Access 1 | . . . . . . . . . . . . . . . 1 . Garrison Relay 12 | . . . . 2 . 2 . 3 . 2 . 3 . . . . Machines Repaired . | . . . . . . . . . . . . . . . . . Machines Dismantled . | . . . . . . . . . . . . . . . . . Machines Sabotaged . | . . . . . . . . . . . . . . . . . Overloaded Fab Kills . | . . . . . . . . . . . . . . . . . Hacking | -11 -10 -9 -8 -8 -8 -8 -7 -7 -7 -7 -6 -6 -5 -4 -3 -2 --------- Run | Yrd Mat Mat Mat Gar Mat Gar Fac Gar Fac Gar Fac Gar Fac Fac Res Res Machines Accessed 36 | . 4 6 1 . 9 1 3 3 1 3 1 . 2 . 1 1 Terminals 25 | . 4 6 . . 6 1 . 3 . 3 . . 1 . 1 . Fabricators 2 | . . . . . . . 1 . . . . . . . . 1 Repair Stations 2 | . . . . . . . 1 . . . . . 1 . . . Recycling Units 1 | . . . . . 1 . . . . . . . . . . . Scanalyzers 1 | . . . . . 1 . . . . . . . . . . . Garrison Access 5 | . . . 1 . 1 . 1 . 1 . 1 . . . . . Total Hacks 80 | . 12 18 1 . 23 1 5 7 1 5 1 . 3 . 1 2 Successful 34 | . 5 7 1 . 11 . 4 . 1 2 1 . 1 . . 1 Failed 46 | . 7 11 . . 12 1 1 7 . 3 . . 2 . 1 1 Catastrophic 6 | . . . . . . . . 4 . 2 . . . . . . Database Lockouts . | . . . . . . . . . . . . . . . . . Manual 46 | . 12 16 . . 17 . . . . . . . 1 . . . Terminals 64 | . 12 18 . . 19 1 . 7 . 5 . . 1 . 1 . Fabricators 3 | . . . . . . . 1 . . . . . . . . 2 Repair Stations 5 | . . . . . . . 3 . . . . . 2 . . . Recycling Units 1 | . . . . . 1 . . . . . . . . . . . Scanalyzers 2 | . . . . . 2 . . . . . . . . . . . Garrison Access 5 | . . . 1 . 1 . 1 . 1 . 1 . . . . . Terminal Hacks 10 | . 2 2 . . 4 . . . . 2 . . . . . . Robot Analysis 5 | . 2 2 . . 1 . . . . . . . . . . . Emergency Access Points 1 | . . . . . . . . . . 1 . . . . . . Unreport Threat 1 | . . . . . 1 . . . . . . . . . . . Locate Traps 1 | . . . . . 1 . . . . . . . . . . . Zone Layout 1 | . . . . . 1 . . . . . . . . . . . Garrison Registry 1 | . . . . . . . . . . 1 . . . . . . Fabricator Hacks 1 | . . . . . . . . . . . . . . . . 1 Load Schematic 1 | . . . . . . . . . . . . . . . . 1 Repair Station Hacks 4 | . . . . . . . 3 . . . . . 1 . . . Scan Component 3 | . . . . . . . 2 . . . . . 1 . . . Repair 1 | . . . . . . . 1 . . . . . . . . . Recycling Unit Hacks 1 | . . . . . 1 . . . . . . . . . . . Report Inventory 1 | . . . . . 1 . . . . . . . . . . . Scanalyzer 2 | . . . . . 2 . . . . . . . . . . . Insert Component 1 | . . . . . 1 . . . . . . . . . . . Analyze 1 | . . . . . 1 . . . . . . . . . . . Garrison Access Hacks 5 | . . . 1 . 1 . 1 . 1 . 1 . . . . . Unlock Access 5 | . . . 1 . 1 . 1 . 1 . 1 . . . . . Unauthorized Hacks 11 | . 3 5 . . 3 . . . . . . . . . . . Terminals 11 | . 3 5 . . 3 . . . . . . . . . . . Assimilate 1 | . . 1 . . . . . . . . . . . . . . Botnet 10 | . 3 4 . . 3 . . . . . . . . . . . Fabricators . | . . . . . . . . . . . . . . . . . Repair Stations . | . . . . . . . . . . . . . . . . . Recycling Units . | . . . . . . . . . . . . . . . . . Scanalyzers . | . . . . . . . . . . . . . . . . . Garrison Access . | . . . . . . . . . . . . . . . . . Data Cores Recovered 2 | . . 2 . . . . . . . . . . . . . . Used . | . . . . . . . . . . . . . . . . . Hacking Detections 29 | . 4 6 . . 7 1 1 3 . 2 1 . 2 . 1 1 Full Trace Events 1 | . 1 . . . . . . . . . . . . . . . Feedback Events . | . . . . . . . . . . . . . . . . . Feedback Blocked . | . . . . . . . . . . . . . . . . . Robot Schematics Acquired . | . . . . . . . . . . . . . . . . . Robots Built . | . . . . . . . . . . . . . . . . . Authchips . | . . . . . . . . . . . . . . . . . Time . | . . . . . . . . . . . . . . . . . Total Robot Build Rating . | . . . . . . . . . . . . . . . . . Part Schematics Acquired 1 | . . . . . 1 . . . . . . . . . . . Parts Built . | . . . . . . . . . . . . . . . . . Authchips . | . . . . . . . . . . . . . . . . . Time . | . . . . . . . . . . . . . . . . . Total Part Build Rating . | . . . . . . . . . . . . . . . . . Parts Repaired 1 | . . . . . . . 1 . . . . . . . . . Time 51 | . . . . . . . 51 . . . . . . . . . Parts Recycled . | . . . . . . . . . . . . . . . . . Recycled Matter . | . . . . . . . . . . . . . . . . . Retrieved Matter . | . . . . . . . . . . . . . . . . . Retrieved Components . | . . . . . . . . . . . . . . . . . Parts Scanalyzed 1 | . . . . . 1 . . . . . . . . . . . Part Schematics Acquired 1 | . . . . . 1 . . . . . . . . . . . Parts Damaged . | . . . . . . . . . . . . . . . . . Bothacking | -11 -10 -9 -8 -8 -8 -8 -7 -7 -7 -7 -6 -6 -5 -4 -3 -2 ------------ Run | Yrd Mat Mat Mat Gar Mat Gar Fac Gar Fac Gar Fac Gar Fac Fac Res Res Used RIF Installer 6 | . . . . 2 . 1 . 1 . 1 . 1 . . . . Hotswap 1 | . . . . . . . . . . 1 . . . . . . Watcher Feeds 1 | . . . . . . . . 1 . . . . . . . . Patrol Navigation 1 | . . . . . . . . . . . . 1 . . . . Alert ID Control 1 | . . . . . . 1 . . . . . . . . . . Structural Interface 1 | . . . . 1 . . . . . . . . . . . . Robots Hacked 10 | . . . . . 3 . 2 . . . . . 3 . 2 . Non-combat 3 | . . . . . 1 . 2 . . . . . . . . . Combat 7 | . . . . . 2 . . . . . . . 3 . 2 . Robot Hacks Applied 12 | . . . . . 4 . 3 . . . . . 3 . 2 . parse_system 1 | . . . . . 1 . . . . . . . . . . . no_distress 3 | . . . . . 1 . 2 . . . . . . . . . find_fabricator 1 | . . . . . . . 1 . . . . . . . . . spike_heat 1 | . . . . . . . . . . . . . 1 . . . streamctrl_high 4 | . . . . . 1 . . . . . . . 1 . 2 . formatsys_high 2 | . . . . . 1 . . . . . . . 1 . . . Relay Couplers Released 50 | . . . . 7 . 9 . 13 . 7 . 14 . . . . Machine Destruction 50 | . . . . 7 . 9 . 13 . 7 . 14 . . . . Attached 5 | . . . . 1 1 . . . . . . . 2 . 1 . Fabnet Peak Effective % . | . . . . . . . . . . . . . . . . . Robots Rewired 4 | . . . . . . . . 4 . . . . . . . . Allies Hacked . | . . . . . . . . . . . . . . . . . Hacks Repelled . | . . . . . . . . . . . . . . . . . Allies | -11 -10 -9 -8 -8 -8 -8 -7 -7 -7 -7 -6 -6 -5 -4 -3 -2 -------- Run | Yrd Mat Mat Mat Gar Mat Gar Fac Gar Fac Gar Fac Gar Fac Fac Res Res Total Allies 12 | . . 1 . 1 2 . . 4 . . . . 2 . 2 . Largest Group 4 | . . 1 . 1 1 . . 4 . . . . 1 . 2 . Highest-Rated Group 172 | . . 10 . 20 16 . . 172 . . . . 142 . 128 . Highest-Rated Ally 142 | . . 10 . 20 16 . . 43 . . . . 142 . 64 . Total Orders . | . . . . . . . . . . . . . . . . . Ally Attacks 44 | . . . . 6 4 . . 24 . . . . 4 . 6 . Total Damage 1542 | . . . . 218 63 . . 737 . . . . 314 . 210 . Kills 9 | . . . . 1 1 . . 7 . . . . . . . . Allies Corrupted 1 | . . . . 1 . . . . . . . . . . . . Allies Melted . | . . . . . . . . . . . . . . . . . Intel | -11 -10 -9 -8 -8 -8 -8 -7 -7 -7 -7 -6 -6 -5 -4 -3 -2 ------- Run | Yrd Mat Mat Mat Gar Mat Gar Fac Gar Fac Gar Fac Gar Fac Fac Res Res Active Infowar (turns) 8862 | 6 887 477 51 460 2310 . 2922 . 260 1 182 2 557 380 367 . Sensors 7461 | . . 372 51 173 2282 . 2922 . 260 1 182 . 557 380 281 . Structural 384 | . 6 14 . 287 77 . . . . . . . . . . . Seismic 979 | 6 881 92 . . . . . . . . . . . . . . Jamming 88 | . . . . . . . . . . . . 2 . . 86 . Robot Analysis Total 5 | . 2 2 . . 1 . . . . . . . . . . . Derelict Logs Recovered . | . . . . . . . . . . . . . . . . . Drone Launches . | . . . . . . . . . . . . . . . . . Drone Recoveries . | . . . . . . . . . . . . . . . . . Exploration | -11 -10 -9 -8 -8 -8 -8 -7 -7 -7 -7 -6 -6 -5 -4 -3 -2 ------------- Run | Yrd Mat Mat Mat Gar Mat Gar Fac Gar Fac Gar Fac Gar Fac Fac Res Res Turns Passed 19829 | 109 887 1793 51 1196 3726 893 3167 2209 260 1203 217 1030 1620 380 974 114 Spaces Moved 7611 | 48 338 581 31 467 1234 384 1141 795 142 447 122 555 562 153 376 235 Core 177 | 13 . 9 . . . . 1 . . . . . . . 41 113 Treads 6487 | 35 338 394 31 467 903 384 859 795 142 447 122 555 562 153 300 . Legs 375 | . . 42 . . 331 . . . . . . . . . 2 . Wheels 417 | . . 136 . . . . 281 . . . . . . . . . Hover . | . . . . . . . . . . . . . . . . . Flight 155 | . . . . . . . . . . . . . . . 33 122 Fastest Speed 40 | 50 160 140 160 160 160 162 162 160 160 160 160 160 160 242 40 40 Average Speed 199 | 130 200 215 160 164 204 181 227 227 160 205 166 160 228 242 193 45 Slowest Speed 2050 | 160 240 950 160 240 320 243 2050 240 160 240 240 160 323 242 465 100 Overloaded Moves . | . . . . . . . . . . . . . . . . . Propulsion Burnouts . | . . . . . . . . . . . . . . . . . Robots Hopped 2 | . . . . . . . . . . . . . . . 1 1 Potential Cave-ins . | . . . . . . . . . . . . . . . . . Cave-ins Triggered 1 | . . 1 . . . . . . . . . . . . . . Exploration Rate (%) 35 | 4 77 50 6 46 80 52 34 88 5 61 5 54 20 5 13 7 Regions Visited 16 Branch Regions . Pre-discovered Areas . | . . . . . . . . . . . . . . . . . Known Exits Taken 6 | . . . 1 . 1 . 1 . 1 . 1 . . 1 . . Unknown Exits Taken 5 | 1 1 1 . . . . . . . . . . 1 . 1 . Scrap Searched . | . . . . . . . . . . . . . . . . . Spaces Dug 33 | . 3 5 . . 7 . 3 . . 11 1 3 . . . . Terrain Destroyed 496 | . 3 21 . . 80 34 28 58 8 68 1 14 63 . 118 . Melee 10 | . . . . . 7 . 3 . . . . . . . . . Projectile 36 | . 3 6 . . 3 . . 1 . . 1 . 9 . 13 . AOE 450 | . . 15 . . 70 34 25 57 8 68 . 14 54 . 105 . Terrain Rammed . | . . . . . . . . . . . . . . . . . Walls Destroyed . | . . . . . . . . . . . . . . . . . Machines Disabled . | . . . . . . . . . . . . . . . . . Actions | -11 -10 -9 -8 -8 -8 -8 -7 -7 -7 -7 -6 -6 -5 -4 -3 -2 --------- Run | Yrd Mat Mat Mat Gar Mat Gar Fac Gar Fac Gar Fac Gar Fac Fac Res Res Total 10525 | 74 477 920 32 719 2121 474 1482 1018 171 600 132 627 755 164 517 242 Wait 1298 | . 78 143 . 104 577 6 155 19 14 63 . 13 74 . 52 . Move 7595 | 48 337 580 31 466 1234 383 1140 793 142 446 122 554 561 152 373 233 Hop 2 | . . . . . . . . . . . . . . . 1 1 Pick Up 185 | 8 18 25 . 18 25 10 20 12 3 6 4 6 17 6 7 . Fast Attach 30 | 1 . 2 . 3 12 1 2 5 . . . 1 1 . 2 . Attach 134 | 6 . 17 1 9 19 8 17 5 1 6 2 5 12 1 24 1 Detach 11 | . . 1 . 1 6 . 1 . . . . . . . 2 . Swap 192 | . 6 30 . 12 56 10 18 22 2 9 1 10 13 2 1 . Drop 90 | . 1 13 . 11 29 2 7 7 4 1 . 2 9 2 1 1 Fire 861 | 11 37 108 . 95 142 42 113 84 4 63 3 36 68 1 54 . Melee 36 | . . . . . 19 10 3 4 . . . . . . . . Ram 1 | . . . . . . . . . . . . . . . . 1 Kick . | . . . . . . . . . . . . . . . . . Crush 4 | . . 1 . . 2 . . . 1 . . . . . . . Escape Stasis 33 | . . . . . . 2 6 14 . 6 . . . . . 5 Rewire 53 | . . . . . . . . 53 . . . . . . . . Trap . | . . . . . . . . . . . . . . . . . Miscellaneous . | . . . . . . . . . . . . . . . . . Route ------- -11/Scrapyard -10/Materials (discovered 3 exits: *Mat x2 / [*Min]) -9/Materials (discovered 2 exits: *Mat / [*Min]) -8/Materials -8/Garrison -8/Materials (discovered 3 exits: *Fac x2 / Gar) -8/Garrison -7/Factory (discovered 2 exits: *Fac / Gar) -7/Garrison (discovered 3 exits: *Fac x3) -7/Factory -7/Garrison (discovered 3 exits: *Fac x3) -6/Factory -6/Garrison -5/Factory -4/Factory -3/Research -2/Research History --------- Turn | Location | Event 8 | -11/Scrapyard | Discovered new exit (range 15) 110 | -11/Scrapyard | Entered Materials 315 | -10/Materials | Build established: Mutant 398 | -10/Materials | Discovered new exit (range 15) 637 | -10/Materials | Discovered new exit (range 14) 710 | -10/Materials | Derelicts attacked the area 744 | -10/Materials | Discovered new exit (range 16) 997 | -10/Materials | Entered another Materials area 997 | -9/Materials | Evolved 2 slots: Propulsion x1, Utility x1 1208 | -9/Materials | Crushed by falling debris 1239 | -9/Materials | Lost 5 parts (1p2n1u1w) 1785 | -9/Materials | Discovered new exit (range 15) 1805 | -9/Materials | Build established: Scavenger-Mutant 1923 | -9/Materials | Core integrity fell below 50% 1996 | -9/Materials | Lost 5 parts (1p1n3u) 2151 | -9/Materials | Discovered new exit (range 16) 2178 | -9/Materials | Build established: Mutant 2734 | -9/Materials | Build established: Scavenger-Mutant 2790 | -9/Materials | Entered another Materials area 2790 | -8/Materials | Evolved 2 slots: Propulsion x1, Utility x1 2841 | -8/Materials | Identified exit to Garrison 2841 | -8/Materials | Entered Garrison 2875 | -8/Garrison | Triggered checkpoint 3086 | -8/Garrison | Installed Relay Interface Framework 3099 | -8/Garrison | Garrison Relay disabled 3233 | -8/Garrison | Expanded RIF knowledge: Structural Interface 3305 | -8/Garrison | Triggered checkpoint 3587 | -8/Garrison | Lost 7 parts (1p3n2u1w) 3717 | -8/Garrison | Rescued a captive Derelict 3725 | -8/Garrison | Triggered checkpoint 3734 | -8/Garrison | Discovered new exit (range 12) 3767 | -8/Garrison | Garrison Relay disabled 3925 | -8/Garrison | Lost 3 parts (2n1u) 4037 | -8/Garrison | Entered Materials 4882 | -8/Materials | Discovered new exit (range 4) 5631 | -8/Materials | Build established: Bothacker-Mutant 5983 | -8/Materials | Lost 3 parts (1p1n1u) 6058 | -8/Materials | Core integrity fell below 50% 6285 | -8/Materials | Build established: Scavenger-Mutant 6721 | -8/Materials | Build established: Mutant 7637 | -8/Materials | First assault squad dispatched 7711 | -8/Materials | Discovered new exit (range 15) 7763 | -8/Materials | Identified exit to Garrison 7763 | -8/Materials | Entered Garrison 7785 | -8/Garrison | Triggered checkpoint 7871 | -8/Garrison | Triggered checkpoint 8011 | -8/Garrison | Garrison Relay disabled 8078 | -8/Garrison | Spotted B-75 Beast 8078 | -8/Garrison | Spotted B-75 Beast 8097 | -8/Garrison | Triggered checkpoint 8118 | -8/Garrison | Core integrity fell below 20% 8136 | -8/Garrison | Destroyed 7 combat bots 8227 | -8/Garrison | Build established: Scavenger-Mutant 8244 | -8/Garrison | Triggered checkpoint 8280 | -8/Garrison | Destroyed 10 combat bots 8499 | -8/Garrison | Discovered new exit (range 10) 8522 | -8/Garrison | Expanded RIF knowledge: Alert ID Control 8589 | -8/Garrison | Build established: Bothacker-Mutant 8656 | -8/Garrison | Entered Factory 8656 | -7/Factory | Evolved 2 slots: Utility x2 9253 | -7/Factory | Lost 3 parts (3n) 10191 | -7/Factory | Discovered new exit (range 16) 11002 | -7/Factory | Lost 3 parts (1p1n1u) 11425 | -7/Factory | Identified exit to Garrison 11720 | -7/Factory | Repaired Imp. Assault Rifle 11771 | -7/Factory | Garrison activated, responded to threat 11823 | -7/Factory | Entered Garrison 11979 | -7/Garrison | Triggered checkpoint 12093 | -7/Garrison | Triggered checkpoint 12096 | -7/Garrison | Lost 4 parts (1p1n2u) 12347 | -7/Garrison | Triggered checkpoint 12391 | -7/Garrison | Garrison Relay disabled 12753 | -7/Garrison | Triggered checkpoint 12759 | -7/Garrison | Triggered checkpoint 12775 | -7/Garrison | Triggered checkpoint 12917 | -7/Garrison | Discovered new exit (range 12) 12973 | -7/Garrison | Triggered checkpoint 13142 | -7/Garrison | Garrison Relay disabled 13209 | -7/Garrison | Garrison Relay disabled 13423 | -7/Garrison | Triggered checkpoint 13571 | -7/Garrison | Discovered new exit (range 8) 13994 | -7/Garrison | Expanded RIF knowledge: Watcher Feeds 14006 | -7/Garrison | Discovered new exit (range 10) 14032 | -7/Garrison | Entered Factory 14292 | -7/Factory | Identified exit to Garrison 14292 | -7/Factory | Entered Garrison 14309 | -7/Garrison | Expanded RIF knowledge: Hotswap 14357 | -7/Garrison | Triggered checkpoint 14398 | -7/Garrison | Destroyed 9 combat bots 14584 | -7/Garrison | Triggered checkpoint 14772 | -7/Garrison | Core integrity fell below 50% 14879 | -7/Garrison | Triggered checkpoint 15001 | -7/Garrison | Discovered new exit (range 10) 15090 | -7/Garrison | Triggered checkpoint 15166 | -7/Garrison | Discovered new exit (range 10) 15186 | -7/Garrison | Triggered checkpoint 15278 | -7/Garrison | Discovered new exit (range 50) 15278 | -7/Garrison | Discovered new exit (range 6) 15278 | -7/Garrison | Discovered new exit (range 50) 15318 | -7/Garrison | Garrison Relay disabled 15495 | -7/Garrison | Entered Factory 15495 | -6/Factory | Evolved 2 slots: Power x1, Utility x1 15712 | -6/Factory | Identified exit to Garrison 15712 | -6/Factory | Entered Garrison 15770 | -6/Garrison | Triggered checkpoint 15980 | -6/Garrison | Triggered checkpoint 16006 | -6/Garrison | Triggered checkpoint 16048 | -6/Garrison | Lost 4 parts (2p1u1w) 16049 | -6/Garrison | Destroyed 11 combat bots 16161 | -6/Garrison | Expanded RIF knowledge: Patrol Navigation 16276 | -6/Garrison | Garrison Relay disabled 16329 | -6/Garrison | Garrison Relay disabled 16449 | -6/Garrison | Build established: Botlord-Mutant 16466 | -6/Garrison | Triggered checkpoint 16510 | -6/Garrison | Garrison Relay disabled 16578 | -6/Garrison | Discovered new exit (range 14) 16742 | -6/Garrison | Entered Factory 16742 | -5/Factory | Evolved 2 slots: Utility x1, Weapon x1 17042 | -5/Factory | First assault squad dispatched 17255 | -5/Factory | Found Prototype Launcher 17255 | -5/Factory | Identified Mni. Smartbomb Launcher 17715 | -5/Factory | Build established: Botlord-Tank 17729 | -5/Factory | Cargo convoy interrupted 18066 | -5/Factory | Lost 3 parts (1p1u1w) 18326 | -5/Factory | Discovered new exit (range 16) 18362 | -5/Factory | Entered another Factory area 18362 | -4/Factory | Evolved 2 slots: Propulsion x1, Utility x1 18700 | -4/Factory | Discovered new exit (range 11) 18742 | -4/Factory | Identified exit to Research 18742 | -4/Factory | Entered Research 18742 | -3/Research | Evolved 2 slots: Utility x1, Weapon x1 18918 | -3/Research | Lost 4 parts (1n1u2w) 19022 | -3/Research | Spotted B-86 Titan 19061 | -3/Research | Lost 6 parts (2p2n1u1w) 19206 | -3/Research | Build established: Botlord-Gunner 19442 | -3/Research | Garrison activated, responded to threat 19498 | -3/Research | Lost 8 parts (2p2n2u2w) 19681 | -3/Research | Released all parts (8) 19696 | -3/Research | Core integrity fell below 50% 19710 | -3/Research | Discovered new exit (range 15) 19712 | -3/Research | Lost 10 parts (1p3n2u4w) 19716 | -3/Research | Entered another Research area 19716 | -2/Research | Evolved 2 slots: Utility x2 19797 | -2/Research | Core integrity fell below 50% 19805 | -2/Research | Core integrity fell below 20% 19830 | -2/Research | Destroyed by G-73 Enforcer with Heavy Laser Last Messages --------------- Penetrated by Slug. Critical hit (Burn: +37). Triggered Stasis Trap. A bubble of rippling energy engulfs the area. Field strength at 94. Field strength at 82. Slug penetrates Meson Extractor. Penetrated by Slug. Field strength at 70. Field strength at 39. Field strength at 28. Field strength at 16. Penetrated by Slug. Stasis field depleted. Penetrated by Slug. Slug penetrates G-73 Enforcer. RIF reveals location of hidden door. ALERT: Potential suspicious activity detected, Programmers report to Research Zone 3J. [Achievement: Just Browsing] Map ----- +----------------------------------------------------+ | # # #??????????????????? | | # ##+###### #? #??????????????????? | | # # #?####+####? #??????????????????? | | # # #???????????? #??????????????????? | | + + #????????????######??????????????????? | | # # #????????????????????????????????????? | | # # #????????????????????????????????????? | | # # #????????????????????????????????????? | | # # #????????????????????????????????????? | | # # +????????????????????????????????????? | | # + #????????????????????????????????????? | | + # #????????????????????????????????????? | | # # #??????????????????? ???????????????? | | # # #????????????####### ????????????????? | | # ###+###???????????? ?????????????????? | | ### ###?# #?????????????? ?????????????????? | | ??# #???# #?????????????? ??????????????????? | | ??# #???# #????########## g ???????????????????? | | ??# #???# #????# # g#???????????????????? | | ### ##### ###### # #???????????????????? | | + # #???????????????????? | | ###### ###### # #???????????????????? | | ?????# #????# """ # #???????????????????? | | ?????# #????# """ # #???????????????????? | | ?????# #????# """ + +???????????????????? | | ?#####+##+#????# #@ #???????????????????? | | ?# #????# # #???????????????????? | | ?# ############### #???????????????????? | | ?# # #???????????????????? | | ?# # #???????????????????? | | ?# ! # #???????????????????? | | ?# + #???????????????????? | | ?# # ###+######+####???????????????????? | | ?# # # #?????????????????????????? | | ?# # # #?????????????????????????? | | #######+### # #?????????????????????????? | | ?????# # #?????????????????????????? | | ??# # !!! #?????????????????????????? | | """""""? # # !! #?????????????????????????? | | """"""" # # !! #?????????????????????????? | | """"""" # #####+####????????????????????????? | | # # #????????????????????????? | | # # #????????????????????????? | | """"""" # # #????????????????????????? | | """"""" # # = #????????????????????????? | | """"""" # + #????????????????????????? | | # # """" #????????????????????????? | | # # """" #????????????????????????? | | ######+#### # """" #????????????????????????? | | # + """" #????????????????????????? | +----------------------------------------------------+ Best States ------------- Heat Dissipation 84 Energy Generation 33 Energy Capacity 360 Matter Stores 300 Matter Capacity 300 Sight Range 16 Robot Scan Range 16 Terrain Scan Density 10 Jamming Range 16 Armor Coverage 1050 Resistance: KI 20 Resistance: EM 15 Phase Shifting 15 Evasion (%) 62 Targeting Accuracy 16 Recoil Reduction 5 Relay Coupler Types 1 Relay Coupler Value 27 Authchip Count 1 Item Schematics ----------------- Hrd. Heavy Armor Plating | -8/Materials | Scanalyzed Robot Schematics ------------------ None Fabricated ------------ Nothing Repaired ---------- Imp. Assault Rifle | 17% | -7/Factory Alien Tech Used ----------------- None Achievements -------------- Dramatic Entrance Just Browsing Overkill Part-time Mechanic Challenges ------------ None Game ------ Seed ConstructAluminumStripper Manual? 0 Play Time 02:47:03 Cumulative 22.9 hours Start 2025.07.21 @ 13:34:04 End 2025.07.21 @ 17:31:07 Sessions 1 Manual Loads 0 Difficulty Rogue Special Mode None Game No. 16 Rogue 16 Adventurer 0 Explorer 0 Win Type - Total 1 Types 1/0/0/0/0/0/0/0/0/0 Lore% 38 Gallery% 25 Achievement% 30 Wizard Run 0 Options --------- Layout 1 ASCII 0 Keyboard 0 Movement Mouse Keybinds 0 Fullscreen 1 Font 24/Smallcaps Map View 50x35 Zoom Use 0% Tactical HUD 0 Map Filters NONE Filters NONE Steam 1 RUN: 10b3408f-6e12-49dc-9c55-38a9015bb7e1